bitfinex/quotes_BTCUSD_20250320
["timestamp","ask_amount","ask_price","bid_price","bid_amount"]
[1742478065851,0.26350655,85700.0,85699.0,1.936]
[1742478066049,0.2334,85690.0,85689.0,0.01854085]
[1742478066249,0.233396,85691.0,85690.0,0.31854085]
[1742478066447,0.233393,85693.0,85691.0,0.01454085]
[1742478066648,0.245062,85693.0,85691.0,0.01454085]
[1742478066851,0.233394,85692.0,85691.0,0.01454085]
[1742478067062,0.233394,85692.0,85691.0,0.31454085]
[1742478067274,0.26335921,85693.0,85692.0,0.3]
[1742478067681,0.26335921,85693.0,85692.0,0.43596]
[1742478068097,0.245063,85692.0,85690.0,0.001]
[1742478068278,0.24508,85686.0,85685.0,0.01454085]
[1742478068458,0.01167,85687.0,85685.0,0.45046085]
[1742478068665,0.233408,85687.0,85686.0,0.3]
[1742478068899,0.245074,85689.0,85686.0,0.3]
[1742478069291,0.233406,85688.0,85686.0,0.3]
[1742478069518,0.233407,85687.0,85686.0,0.3]
[1742478069728,0.245077,85687.0,85686.0,0.3]
[1742478070129,0.245085,85684.0,85674.0,0.55952]
[1742478070302,0.011671,85678.0,85675.0,0.13588]
[1742478070536,0.245108,85676.0,85675.0,0.13588]
[1742478070772,0.011671,85678.0,85675.0,0.13588]
[1742478070773,0.233432,85678.0,85675.0,1.869319]
[1742478070986,0.245108,85676.0,85675.0,1.63588]
[1742478071342,0.245108,85676.0,85675.0,1.93588]
[1742478071683,0.245108,85676.0,85675.0,1.63888]
[1742478071827,0.245108,85676.0,85675.0,1.6388]
[1742478072032,0.233435,85677.0,85675.0,0.1388]
[1742478072234,0.233405,85688.0,85685.0,0.233411]
[1742478072436,0.011669,85691.0,85685.0,0.13608]
[1742478072643,0.011669,85691.0,85689.0,0.004]
[1742478072998,0.011669,85691.0,85689.0,0.01854085]
[1742478072999,0.233401,85690.0,85689.0,0.01854085]
[1742478073151,0.233401,85690.0,85689.0,0.15466085]
[1742478073365,0.24507,85690.0,85689.0,0.15466085]
[1742478074617,0.245049,85697.0,85689.0,0.15466085]
[1742478074618,0.011667,85708.0,85699.0,0.015668]
[1742478074780,0.233336,85714.0,85699.0,0.93767788]
[1742478074989,0.23337,85701.0,85699.0,0.82967588]
[1742478075232,0.26350774,85700.0,85699.0,0.55552]
[1742478075404,0.26350774,85700.0,85699.0,0.69168]
[1742478075624,0.26350774,85700.0,85699.0,0.55552]
[1742478075819,0.26350774,85700.0,85699.0,0.69172]
[1742478077673,0.26350774,85700.0,85699.0,0.55552]
[1742478078483,0.01846774,85700.0,85699.0,0.788894]
[1742478078702,0.01846774,85700.0,85699.0,2.43867788]
[1742478078857,0.26350774,85700.0,85699.0,2.32967588]
[1742478079062,0.26350774,85700.0,85699.0,0.55552]
[1742478080586,0.34100774,85700.0,85699.0,0.55552]
[1742478081213,0.233397,85691.0,85687.0,0.01454085]
[1742478081413,0.23339,85694.0,85692.0,0.136]
[1742478081761,0.24506,85693.0,85692.0,0.136]
[1742478082077,0.25241049,85693.0,85692.0,0.136]
[1742478082463,0.25241049,85693.0,85692.0,0.38317888]
[1742478082464,0.00735049,85693.0,85692.0,0.38317888]
[1742478082675,0.233386,85695.0,85693.0,0.01454085]
[1742478082852,0.245059,85694.0,85693.0,0.01454085]
[1742478083004,0.25239535,85694.0,85693.0,0.13811588]
[1742478083390,0.25239535,85694.0,85693.0,0.38317588]
[1742478083391,0.00733635,85694.0,85693.0,0.38317588]
[1742478083591,0.245046,85698.0,85695.0,0.01454085]
[1742478083812,0.233383,85696.0,85695.0,0.01354085]
[1742478084032,0.245052,85696.0,85695.0,0.01354085]
[1742478084247,0.233385,85695.0,85694.0,0.3]
[1742478084497,0.233385,85695.0,85681.0,0.567191]
[1742478084498,0.245085,85684.0,85681.0,0.55552]
[1742478084695,0.245085,85684.0,85681.0,0.6914]
[1742478084894,0.245085,85684.0,85666.0,0.011673]
[1742478084895,0.29862774,85684.0,85669.0,0.004]
[1742478085154,0.29862774,85684.0,85669.0,0.237456]
[1742478085457,0.3169276,85684.0,85672.0,0.533447]
[1742478085688,0.3169276,85684.0,85673.0,0.011672]
[1742478085925,0.3169276,85684.0,85672.0,0.533446]
[1742478086139,0.3169276,85684.0,85673.0,0.011672]
[1742478086515,0.3169276,85684.0,85683.0,0.0023384]
[1742478086935,0.3169276,85684.0,85683.0,0.0003384]
[1742478087707,0.43650263,85684.0,85683.0,4e-07]
[1742478087891,0.43750263,85684.0,85683.0,4e-07]
[1742478088095,0.43750263,85684.0,85662.0,0.0003384]
[1742478088096,0.245146,85663.0,85662.0,0.0003384]
[1742478088476,0.2523823,85663.0,85662.0,0.00046326]
[1742478088790,0.2706878,85663.0,85662.0,0.00046326]
[1742478089194,0.2706878,85663.0,85662.0,2.6e-07]
[1742478089195,0.51316283,85663.0,85662.0,2.6e-07]
[1742478089800,0.245186,85649.0,85648.0,0.0003384]
[1742478090009,0.25380405,85649.0,85648.0,0.0003384]
[1742478090223,0.2652399,85649.0,85648.0,0.0003384]
[1742478090635,0.28354781,85649.0,85648.0,0.0003384]
[1742478091099,0.28354781,85649.0,85648.0,0.0013384]
[1742478091620,0.28354781,85649.0,85648.0,0.0003384]
[1742478091621,0.27211196,85649.0,85648.0,0.0003384]
[1742478092009,0.24212905,85649.0,85648.0,0.0003384]
[1742478092212,0.25380405,85649.0,85648.0,0.1402984]
[1742478092743,0.25380405,85649.0,85648.0,0.1403384]
[1742478093351,0.00961805,85649.0,85648.0,0.45012928]
[1742478093575,0.00961805,85649.0,85648.0,0.57445428]
[1742478093866,0.00949782,85649.0,85648.0,0.57445428]
[1742478094009,0.01149782,85649.0,85648.0,0.57445428]
[1742478094206,0.01149782,85649.0,85648.0,0.58612928]
[1742478094446,0.003,85649.0,85648.0,0.58612928]
[1742478094995,0.02030598,85649.0,85648.0,1.02689369]
[1742478095198,0.01167,85687.0,85680.0,0.004]
[1742478095520,0.01167,85687.0,85683.0,0.01854085]
[1742478095521,0.00012481,85684.0,85683.0,0.01854085]
[1742478095725,0.00012481,85684.0,85683.0,0.68320388]
[1742478096055,0.00012481,85684.0,85683.0,0.43811588]
[1742478096262,0.00012481,85684.0,85683.0,0.304]
[1742478096456,0.00864017,85684.0,85683.0,0.304]
[1742478096657,0.02031017,85684.0,85683.0,0.43936]
[1742478096878,0.02031017,85684.0,85683.0,0.13636]
[1742478097293,0.00864017,85684.0,85683.0,0.005]
[1742478097500,0.00864017,85684.0,85683.0,0.004]
[1742478098040,0.00864017,85684.0,85683.0,0.14111588]
[1742478098194,0.00864017,85684.0,85683.0,0.15278588]
[1742478098396,0.00864017,85684.0,85683.0,0.15078588]
[1742478098602,0.01842413,85684.0,85683.0,0.45078588]
[1742478098803,0.01842413,85684.0,85683.0,1.95078588]
[1742478100603,0.01842413,85684.0,85683.0,1.93911588]
[1742478100807,0.00012481,85684.0,85683.0,1.95078588]
[1742478101255,0.00029401,85684.0,85683.0,0.45078588]
[1742478102168,0.00029401,85684.0,85683.0,1.95078588]
[1742478102564,0.00029401,85684.0,85683.0,0.45078588]
[1742478104500,0.00029401,85684.0,85683.0,0.58690588]
[1742478104747,0.00029401,85684.0,85683.0,1.14250588]
[1742478104951,0.00029401,85684.0,85683.0,1.58747029]
[1742478105673,0.00029401,85684.0,85683.0,1.45135029]
[1742478106035,0.00029401,85684.0,85683.0,1.58643029]
[1742478106229,0.00029401,85684.0,85683.0,1.45135029]
[1742478106406,0.00029401,85684.0,85683.0,1.58743029]
[1742478106728,0.00029401,85684.0,85683.0,1.45035029]
[1742478107264,0.00029401,85684.0,85683.0,1.59039029]
[1742478107479,0.00029401,85684.0,85683.0,1.59439029]
[1742478107686,0.00029401,85684.0,85683.0,1.45835029]
[1742478107896,0.00029401,85684.0,85683.0,1.59031029]
[1742478108100,0.00029401,85684.0,85683.0,1.45435029]
[1742478108320,0.00029401,85684.0,85683.0,1.59627029]
[1742478108540,0.00029401,85684.0,85683.0,1.82968829]
[1742478108732,0.00029401,85684.0,85683.0,3.19376829]
[1742478109157,0.00029401,85684.0,85683.0,3.32564829]
[1742478109336,0.00029401,85684.0,85683.0,3.33164829]
[1742478109677,0.00029401,85684.0,85683.0,3.19576829]
[1742478110057,0.00029401,85684.0,85683.0,3.33160829]
[1742478110623,0.00029401,85684.0,85683.0,3.31960829]
[1742478111044,0.00029401,85684.0,85683.0,3.19476829]
[1742478111244,0.00029401,85684.0,85683.0,3.33056829]
[1742478111450,0.00029401,85684.0,85683.0,3.32456829]
[1742478111865,0.00029401,85684.0,85683.0,3.33056829]
[1742478112205,0.00029401,85684.0,85683.0,3.19476829]
[1742478112354,0.00029401,85684.0,85683.0,3.32544829]
[1742478112573,0.00029401,85684.0,85683.0,3.32548829]
[1742478112759,1e-08,85684.0,85683.0,3.19576829]
[1742478113127,1e-08,85684.0,85683.0,3.33144829]
[1742478113765,1e-08,85684.0,85683.0,3.33136829]
[1742478113975,1e-08,85684.0,85683.0,3.19576829]
[1742478114183,1e-08,85684.0,85683.0,3.33136829]
[1742478114381,1e-08,85684.0,85683.0,3.33132829]
[1742478114753,1e-08,85684.0,85683.0,3.19576829]
[1742478114953,1e-08,85684.0,85683.0,3.33128829]
[1742478115275,1e-08,85684.0,85683.0,3.19610669]
[1742478115471,1e-08,85684.0,85683.0,3.33162669]
[1742478115671,1e-08,85684.0,85683.0,3.32762669]
[1742478115857,1e-08,85684.0,85683.0,3.33162669]
[1742478116073,1e-08,85684.0,85683.0,3.19610669]
[1742478116461,1e-08,85684.0,85683.0,3.33158669]
[1742478116877,1e-08,85684.0,85683.0,3.33154669]
[1742478117092,1e-08,85684.0,85683.0,3.19610669]
[1742478117293,1e-08,85684.0,85683.0,3.33150669]
[1742478118098,1e-08,85684.0,85683.0,3.33146669]
[1742478119178,1e-08,85684.0,85683.0,3.19610669]
[1742478119378,1e-08,85684.0,85683.0,3.19010669]
[1742478119653,1e-08,85684.0,85683.0,3.32538669]
[1742478119996,1e-08,85684.0,85683.0,3.35038669]
[1742478120350,1e-08,85684.0,85683.0,4.02118669]
[1742478120495,1e-08,85684.0,85683.0,4.04618669]
[1742478120887,1e-08,85684.0,85683.0,4.05218669]
[1742478121104,1e-08,85684.0,85683.0,4.04618669]
[1742478121845,1e-08,85684.0,85683.0,4.02118669]
[1742478122469,1e-08,85684.0,85683.0,3.88590669]
[1742478122639,1e-08,85684.0,85683.0,4.02106669]
[1742478122826,1e-08,85684.0,85683.0,4.01506669]
[1742478123033,1e-08,85684.0,85683.0,4.02106669]
[1742478123373,0.0001691,85699.0,85698.0,0.011668]
[1742478123588,0.0001691,85699.0,85698.0,1.17991847]
[1742478123768,0.0001691,85699.0,85698.0,1.17758528]
[1742478124167,0.0001691,85699.0,85698.0,2.67758528]
[1742478124775,0.0001691,85699.0,85698.0,2.68858528]
[1742478125013,0.0001691,85699.0,85698.0,3.24398528]
[1742478125219,0.0001691,85699.0,85698.0,3.10882528]
[1742478125543,0.0001691,85699.0,85698.0,3.24786528]
[1742478126146,0.0001691,85699.0,85698.0,3.23686528]
[1742478126348,0.0001691,85699.0,85698.0,3.23286528]
[1742478126682,0.0001691,85699.0,85698.0,3.11082528]
[1742478127061,0.0001691,85699.0,85698.0,3.24602528]
[1742478127263,0.0001691,85699.0,85698.0,3.23702528]
[1742478127678,0.0001691,85699.0,85698.0,3.24802528]
[1742478128655,0.0001691,85699.0,85698.0,3.10782528]
[1742478129080,0.0001691,85699.0,85698.0,3.24298528]
[1742478129352,0.0001691,85699.0,85698.0,3.23694528]
[1742478129555,0.0001691,85699.0,85698.0,3.24194528]
[1742478129900,0.0001691,85699.0,85698.0,3.24694528]
[1742478130103,0.0001691,85699.0,85698.0,3.24194528]
[1742478130523,0.0001691,85699.0,85698.0,3.24694528]
[1742478130739,0.0001691,85699.0,85698.0,3.24294528]
[1742478130941,0.0001691,85699.0,85698.0,3.24694528]
[1742478131166,0.0001691,85699.0,85698.0,3.24702528]
[1742478133458,0.0001691,85699.0,85698.0,3.24690528]
[1742478133606,0.0001691,85699.0,85698.0,3.11182528]
[1742478133929,0.0001691,85699.0,85698.0,3.24686528]
[1742478134479,1e-07,85699.0,85698.0,3.24686528]
[1742478134895,4e-07,85700.0,85699.0,0.56358285]
[1742478135099,0.0808,85736.0,85728.0,0.56350085]
[1742478135100,0.1293,85736.0,85728.0,0.56350085]
[1742478135372,0.011662,85748.0,85728.0,0.56350085]
[1742478135373,0.00341635,85729.0,85728.0,1.73694028]
[1742478135585,0.00341635,85729.0,85728.0,3.23694028]
[1742478136564,0.00341635,85729.0,85728.0,3.23894028]
[1742478136950,0.00341635,85729.0,85728.0,3.24094028]
[1742478137149,0.31430935,85729.0,85728.0,2.99598028]
[1742478137426,0.37337335,85729.0,85728.0,2.4226244]
[1742478137596,0.37337335,85729.0,85728.0,1.0577844]
[1742478137800,0.37337335,85729.0,85728.0,0.55936]
[1742478137801,0.38083672,85729.0,85728.0,0.55936]
[1742478138460,0.38083672,85729.0,85728.0,0.004]
[1742478139270,0.233307,85724.0,85721.0,0.233313]
[1742478139486,0.233312,85722.0,85721.0,0.43811588]
[1742478139647,0.233312,85722.0,85721.0,0.57327588]
[1742478139851,0.24076716,85722.0,85721.0,0.57327588]
[1742478140053,0.25905854,85722.0,85721.0,0.57327588]
[1742478140351,0.02574654,85722.0,85721.0,0.57331588]
[1742478140530,0.02574654,85722.0,85721.0,0.68309588]
[1742478140736,0.01829138,85722.0,85721.0,0.81857588]
[1742478141176,0.01829138,85722.0,85721.0,0.80691088]
[1742478141360,0.01829138,85722.0,85721.0,0.57359588]
[1742478141555,0.02573682,85722.0,85721.0,0.80691088]
[1742478141834,0.25904882,85722.0,85721.0,0.57359588]
[1742478142019,0.02573682,85722.0,85721.0,0.57359588]
[1742478142218,0.03740182,85722.0,85721.0,0.56959588]
[1742478142435,0.03740182,85722.0,85717.0,0.004]
[1742478142436,0.233317,85720.0,85717.0,0.004]
[1742478142636,0.2407793,85719.0,85718.0,0.3]
[1742478142863,0.2524453,85719.0,85718.0,0.3]
[1742478143322,0.2524453,85719.0,85718.0,0.43544]
[1742478143495,0.0074593,85719.0,85718.0,0.544989]
[1742478143707,0.233301,85726.0,85721.0,0.233312]
[1742478143908,0.00744821,85725.0,85722.0,0.004]
[1742478144113,0.233309,85723.0,85722.0,0.004]
[1742478144313,0.12841635,85729.0,85728.0,0.233296]
[1742478144534,0.13586456,85729.0,85727.0,0.233297]
[1742478144733,0.05826456,85729.0,85728.0,0.004]
[1742478145136,0.05826456,85729.0,85728.0,0.54896]
[1742478145361,0.00341635,85729.0,85728.0,0.68307588]
[1742478145554,0.02170654,85729.0,85728.0,0.68307588]
[1742478146992,0.02170654,85729.0,85728.0,2.18307588]
[1742478147194,0.00341635,85729.0,85728.0,2.18307588]
[1742478147396,0.00341635,85729.0,85728.0,2.54634028]
[1742478148301,0.00341635,85729.0,85728.0,2.54834028]
[1742478149044,0.00341635,85729.0,85728.0,2.55034028]
[1742478149445,0.00341635,85729.0,85728.0,2.54834028]
[1742478149689,0.00341635,85729.0,85728.0,2.54934028]
[1742478149864,0.00341635,85729.0,85728.0,2.68462028]
[1742478150070,0.00341635,85729.0,85728.0,2.68662028]
[1742478150281,0.00341635,85729.0,85728.0,2.69062028]
[1742478150483,0.00341635,85729.0,85728.0,2.70056482]
[1742478150709,7.5e-07,85732.0,85731.0,0.548951]
[1742478150909,1.3e-07,85740.0,85739.0,0.627429]
[1742478151230,9.723e-05,85740.0,85739.0,1.31682488]
[1742478151462,9.723e-05,85740.0,85739.0,2.81682488]
[1742478151938,9.723e-05,85740.0,85739.0,2.87388488]
[1742478153061,5.3e-07,85744.0,85743.0,0.548917]
[1742478153255,5.3e-07,85744.0,85743.0,0.68303288]
[1742478153977,5.3e-07,85744.0,85743.0,2.31855288]
[1742478154435,5.3e-07,85744.0,85743.0,2.32742942]
[1742478155729,5.3e-07,85744.0,85743.0,2.69069382]
[1742478156180,5.3e-07,85744.0,85743.0,2.69569382]
[1742478156429,5.3e-07,85744.0,85743.0,2.69669382]
[1742478156644,5.3e-07,85744.0,85743.0,2.70269382]
[1742478156869,0.0179951,85766.0,85765.0,0.548854]
[1742478157094,0.01811984,85766.0,85765.0,1.73679428]
[1742478157757,0.01811984,85766.0,85765.0,3.23679428]
[1742478158444,0.0774692,85786.0,85765.0,3.23679428]
[1742478158445,0.0774692,85786.0,85784.0,0.011657]
[1742478158672,0.0001692,85786.0,85784.0,0.51851588]
[1742478158870,0.02747625,85785.0,85784.0,0.51851588]
[1742478159101,0.01844912,85785.0,85784.0,0.81851588]
[1742478159332,0.00058202,85800.0,85799.0,0.3]
[1742478159557,0.00070676,85800.0,85799.0,1.14045088]
[1742478159995,0.233048,85819.0,85802.0,0.011654]
[1742478160238,0.011653,85813.0,85799.0,0.866735]
[1742478160417,0.011653,85811.0,85803.0,0.13556]
[1742478160646,0.233088,85805.0,85803.0,0.13556]
[1742478161048,0.00920683,85804.0,85803.0,0.13556]
[1742478161263,0.00920683,85804.0,85803.0,0.147214]
[1742478161501,0.0495,85808.0,85805.0,0.233086]
[1742478161680,0.232576,85809.0,85805.0,0.233086]
[1742478162323,0.232576,85809.0,85804.0,0.233087]
[1742478162324,0.0782,85808.0,85804.0,0.233087]
[1742478162540,0.08739883,85808.0,85804.0,0.233087]
[1742478162770,0.03739883,85808.0,85804.0,0.233087]
[1742478162966,0.03739883,85808.0,85805.0,0.13544]
[1742478163188,0.011651,85825.0,85811.0,0.011653]
[1742478163414,0.011652,85819.0,85811.0,0.11957503]
[1742478163662,0.233054,85817.0,85811.0,0.11957503]
[1742478163869,0.233054,85817.0,85812.0,0.233067]
[1742478164077,0.24451553,85816.0,85812.0,0.233067]
[1742478164287,0.01145853,85816.0,85812.0,0.233067]
[1742478164511,0.011652,85815.0,85808.0,0.011653]
[1742478164707,0.233051,85818.0,85812.0,0.011653]
[1742478164866,0.23306,85815.0,85813.0,0.13544]
[1742478165066,0.233063,85814.0,85809.0,0.233075]
[1742478165335,0.01336829,85813.0,85812.0,0.01854085]
[1742478165537,0.01336829,85813.0,85812.0,0.13811588]
[1742478165735,0.244711,85815.0,85812.0,0.13811588]
[1742478165975,0.01827408,85813.0,85812.0,0.37118288]
[1742478166180,0.01827408,85813.0,85812.0,0.38283588]
[1742478166308,0.03164237,85813.0,85812.0,0.38283588]
[1742478166506,0.03164237,85813.0,85810.0,0.1354]
[1742478166718,0.01827408,85813.0,85810.0,0.147053]
[1742478166920,0.01336829,85812.0,85810.0,0.147053]
[1742478167124,0.01336829,85812.0,85810.0,0.1354]
[1742478167340,0.01336829,85812.0,85810.0,0.380125]
[1742478167566,0.01827408,85813.0,85810.0,0.380125]
[1742478167760,0.01827408,85813.0,85811.0,0.233068]
[1742478167969,0.01827408,85813.0,85812.0,0.233067]
[1742478168189,0.03164237,85813.0,85812.0,0.233067]
[1742478168305,0.03164237,85813.0,85810.0,0.1354]
[1742478168506,0.03164237,85813.0,85810.0,0.48804703]
[1742478168714,0.03164237,85813.0,85810.0,0.49970003]
[1742478168969,0.03164237,85813.0,85811.0,0.23307]
[1742478169215,0.03164237,85813.0,85812.0,0.233067]
[1742478169474,0.03164237,85813.0,85812.0,0.24472]
[1742478169880,0.01827408,85813.0,85812.0,1.5]
[1742478170080,0.03164237,85813.0,85812.0,1.733067]
[1742478170281,0.03164237,85813.0,85812.0,1.74472]
[1742478170434,0.01827408,85813.0,85812.0,0.24472]
[1742478170597,0.01827408,85813.0,85810.0,0.1354]
[1742478170799,0.03165667,85813.0,85812.0,0.24872]
[1742478171019,0.03165667,85813.0,85812.0,1.86829503]
[1742478171225,0.01827408,85813.0,85812.0,1.86829503]
[1742478172429,0.0148523,85829.0,85823.0,0.233036]
[1742478172625,0.233026,85827.0,85824.0,0.13524]
[1742478173085,0.233032,85825.0,85824.0,0.13524]
[1742478173277,0.01339425,85826.0,85824.0,0.368274]
[1742478173468,0.0148523,85829.0,85828.0,0.244675]
[1742478173871,0.0148523,85829.0,85828.0,0.37879088]
[1742478174114,0.0148523,85829.0,85828.0,0.68279088]
[1742478174406,0.0148523,85829.0,85828.0,2.18279088]
[1742478174539,0.0148523,85829.0,85828.0,2.26469088]
[1742478174980,0.0148523,85829.0,85828.0,2.62795528]
[1742478175648,0.0148523,85829.0,85828.0,2.76743528]
[1742478175851,0.0148523,85829.0,85828.0,2.55005528]
[1742478176113,0.0148523,85829.0,85828.0,2.68557528]
[1742478176948,0.0148523,85829.0,85828.0,2.68157528]
[1742478177309,0.0148523,85829.0,85828.0,2.68857528]
[1742478177509,0.0148523,85829.0,85828.0,2.68553528]
[1742478177908,0.0148523,85829.0,85828.0,2.68953528]
[1742478180157,0.0148523,85829.0,85828.0,1.05405528]
[1742478180563,0.0148523,85829.0,85828.0,1.18949528]
[1742478180762,0.0148523,85829.0,85828.0,2.68949528]
[1742478181168,0.0148523,85829.0,85828.0,2.68149528]
[1742478181610,0.0148523,85829.0,85828.0,2.68949528]
[1742478181969,0.0148523,85829.0,85828.0,2.76869528]
[1742478182817,0.0148523,85829.0,85828.0,2.76469528]
[1742478182989,0.0148523,85829.0,85828.0,2.76497528]
[1742478183196,0.0148523,85829.0,85828.0,2.77097528]
[1742478184006,0.0148523,85829.0,85828.0,2.76497528]
[1742478184190,0.0148523,85829.0,85828.0,2.77097528]
[1742478184608,0.0148523,85829.0,85828.0,2.77697528]
[1742478184796,0.0148523,85829.0,85828.0,2.77097528]
[1742478185036,3e-07,85829.0,85828.0,2.77697528]
[1742478185459,0.003,85849.0,85828.0,2.77697528]
[1742478185460,0.003,85849.0,85848.0,0.548617]
[1742478185665,0.003,85849.0,85848.0,1.26249698]
[1742478186109,0.0001694,85852.0,85851.0,0.548609]
[1742478186319,4e-07,85852.0,85851.0,1.23724488]
[1742478186536,4e-07,85852.0,85851.0,1.28344488]
[1742478186761,0.00012506,85852.0,85851.0,1.28344488]
[1742478187104,0.232872,85884.0,85851.0,1.28344488]
[1742478187105,0.0657385,85888.0,85880.0,0.23288]
[1742478187307,0.025,85938.0,85879.0,0.244529]
[1742478187308,0.002,85889.0,85888.0,0.004]
[1742478187505,0.01376661,85889.0,85888.0,0.11957503]
[1742478187796,0.24662661,85889.0,85888.0,0.13628]
[1742478187999,0.24662661,85889.0,85881.0,0.3632641]
[1742478188000,0.232877,85882.0,85881.0,0.3632641]
[1742478188234,0.232877,85882.0,85869.0,0.1364]
[1742478188235,0.011644,85876.0,85869.0,0.1364]
[1742478188397,0.011644,85876.0,85870.0,0.232907]
[1742478188589,0.011644,85876.0,85869.0,0.1364]
[1742478188590,0.011645,85871.0,85869.0,0.1364]
[1742478188763,0.011645,85870.0,85869.0,0.1364]
[1742478189171,0.194553,85871.0,85869.0,0.1364]
[1742478189733,0.011645,85870.0,85869.0,0.1364]
[1742478189945,0.011645,85870.0,85854.0,0.315647]
[1742478189946,0.232935,85861.0,85859.0,0.004]
[1742478190143,0.244581,85861.0,85857.0,0.1364]
[1742478190345,0.011646,85865.0,85857.0,0.1364]
[1742478190346,0.011645,85868.0,85863.0,0.011646]
[1742478190565,0.011645,85868.0,85827.0,1.165128]
[1742478190566,0.08,85892.0,85880.0,0.011644]
[1742478190785,0.011644,85880.0,85873.0,0.148085]
[1742478190910,0.242337,85877.0,85875.0,0.13644]
[1742478191110,0.242337,85877.0,85868.0,0.011645]
[1742478191111,0.244555,85870.0,85869.0,0.004]
[1742478191420,0.232904,85873.0,85869.0,0.13522003]
[1742478191645,0.24455,85872.0,85870.0,0.11957503]
[1742478191873,0.244552,85871.0,85869.0,0.11957503]
[1742478192044,0.232908,85871.0,85869.0,0.11957503]
[1742478192246,0.244552,85872.0,85869.0,0.11957503]
[1742478192465,0.232905,85874.0,85869.0,0.11957503]
[1742478192849,0.01375817,85871.0,85869.0,0.11957503]
[1742478193079,0.244549,85874.0,85869.0,0.11957503]
[1742478193302,0.01375817,85870.0,85869.0,0.11957503]
[1742478193490,0.232912,85869.0,85868.0,0.13776461]
[1742478193699,0.01375817,85870.0,85868.0,0.37067861]
[1742478193836,0.011644,85874.0,85869.0,0.12157503]
[1742478194037,0.232897,85875.0,85870.0,0.232909]
[1742478194237,0.244552,85871.0,85869.0,0.12157503]
[1742478194437,0.01375817,85874.0,85869.0,0.001]
[1742478194639,0.011644,85874.0,85869.0,0.232911]
[1742478194824,0.011644,85877.0,85870.0,0.232909]
[1742478194825,0.232897,85875.0,85870.0,0.232909]
[1742478195025,0.25115694,85875.0,85870.0,0.232909]
[1742478195225,0.01375817,85874.0,85870.0,0.232909]
[1742478195495,0.232903,85873.0,85869.0,0.004]
[1742478195707,0.01146515,85873.0,85869.0,0.004]
[1742478195916,0.232904,85872.0,85869.0,0.004]
[1742478196100,0.232904,85872.0,85870.0,0.1374]
[1742478196101,0.244554,85871.0,85870.0,0.1374]
[1742478196313,0.244554,85871.0,85869.0,0.004]
[1742478196314,0.011645,85870.0,85869.0,0.004]
[1742478196540,0.011645,85870.0,85869.0,0.13936]
[1742478197022,0.011645,85870.0,85869.0,0.13836]
[1742478197277,0.232912,85869.0,85868.0,0.00012461]
[1742478197783,0.244557,85869.0,85868.0,0.00012461]
[1742478198046,0.2561982,85869.0,85868.0,0.00012461]
[1742478200816,0.50367323,85869.0,85868.0,6.1e-07]
[1742478201271,0.54031563,85869.0,85868.0,6.1e-07]
[1742478201491,0.43431563,85869.0,85868.0,6.1e-07]
[1742478201753,0.3137406,85869.0,85868.0,6.1e-07]
[1742478201947,0.3020982,85869.0,85868.0,6.1e-07]
[1742478202759,0.2561982,85869.0,85868.0,6.1e-07]
[1742478203216,0.27796046,85869.0,85868.0,6.1e-07]
[1742478203877,0.03340346,85869.0,85868.0,0.24456061]
[1742478204053,0.03340346,85869.0,85868.0,6.1e-07]
[1742478204208,0.03340346,85869.0,85868.0,0.24456061]
[1742478204417,0.03340346,85869.0,85868.0,6.1e-07]
[1742478204418,0.02176226,85869.0,85868.0,6.1e-07]
[1742478204634,0.02176226,85869.0,85868.0,0.13728061]
[1742478204838,0.03339146,85869.0,85868.0,6.1e-07]
[1742478205190,0.05165307,85869.0,85868.0,0.13724061]
[1742478205404,0.28456507,85869.0,85868.0,0.13724061]
[1742478206092,0.05165307,85869.0,85868.0,0.13724061]
[1742478206541,0.28456507,85869.0,85868.0,0.13724061]
[1742478206745,0.29621007,85869.0,85868.0,0.13724061]
[1742478207477,0.29621007,85869.0,85868.0,6.1e-07]
[1742478207687,0.29621007,85869.0,85868.0,0.00100061]
[1742478208159,0.28456507,85869.0,85868.0,0.00100061]
[1742478208368,0.05165307,85869.0,85868.0,0.37013564]
[1742478209245,0.04002387,85869.0,85868.0,0.37013564]
[1742478209472,0.04002387,85869.0,85868.0,1.87013564]
[1742478209660,0.04002387,85869.0,85868.0,1.86813564]
[1742478209864,0.04002387,85869.0,85868.0,1.61957564]
[1742478209865,0.27293587,85869.0,85868.0,1.61957564]
[1742478210081,0.04102387,85869.0,85868.0,1.61957564]
[1742478210203,0.05273688,85869.0,85868.0,1.62357564]
[1742478210408,0.04002387,85869.0,85868.0,0.12357564]
[1742478210655,0.04002387,85869.0,85868.0,0.36813564]
[1742478210656,0.05173547,85869.0,85868.0,0.36813564]
[1742478210851,0.03347386,85869.0,85868.0,1.23707649]
[1742478211004,0.02176226,85869.0,85868.0,1.23707649]
[1742478211212,0.02176226,85869.0,85868.0,1.23807649]
[1742478211455,0.02176226,85869.0,85868.0,1.24007649]
[1742478212434,0.0001691,85874.0,85873.0,0.548547]
[1742478212435,3.6e-07,85874.0,85873.0,0.548547]
[1742478212636,3.6e-07,85874.0,85873.0,0.81998288]
[1742478213253,3.6e-07,85874.0,85873.0,0.88174203]
[1742478213594,3.6e-07,85874.0,85873.0,0.80844203]
[1742478213796,3.6e-07,85874.0,85873.0,0.80544203]
[1742478214012,3.6e-07,85874.0,85873.0,0.81044203]
[1742478214207,3.6e-07,85874.0,85873.0,0.81544203]
[1742478214651,3.6e-07,85874.0,85873.0,0.66812203]
[1742478214875,3.6e-07,85874.0,85873.0,0.80548203]
[1742478215361,3.6e-07,85874.0,85873.0,0.42357503]
[1742478215530,3.6e-07,85874.0,85873.0,0.11957503]
[1742478215730,3.6e-07,85874.0,85873.0,0.13728]
[1742478215934,3.6e-07,85874.0,85873.0,0.14228]
[1742478216137,0.01164436,85874.0,85873.0,0.005]
[1742478216335,0.0299028,85874.0,85869.0,0.13724]
[1742478216540,0.244555,85870.0,85869.0,0.13724]
[1742478217138,0.25436306,85870.0,85869.0,0.13724]
[1742478217345,0.244557,85869.0,85868.0,0.00033881]
[1742478217951,0.25430493,85869.0,85868.0,0.00033881]
[1742478218399,0.33730493,85869.0,85868.0,0.00033881]
[1742478219114,0.45787996,85869.0,85868.0,0.00033881]
[1742478219335,0.59503996,85869.0,85868.0,0.00033881]
[1742478219541,0.59703996,85869.0,85868.0,0.00033881]
[1742478219756,0.59703996,85869.0,85868.0,8.1e-07]
[1742478220000,0.62003996,85869.0,85868.0,8.1e-07]
[1742478220169,0.66973996,85869.0,85868.0,8.1e-07]
[1742478220426,0.67173996,85869.0,85868.0,8.1e-07]
[1742478221486,0.66973996,85869.0,85868.0,8.1e-07]